[Event "Estonian Women's Chess Championship 2021"]
[Site "Tallinn, Paul Keres Chess House, Estonia"]
[Date "2021.12.13"]
[Round "3.3"]
[White "Haapsal, Maria Ioanna"]
[Black "Shadrina, Eva"]
[Result "1-0"]
[TimeControl "90 minutes for first 40 moves and 15 min. for the rest of the game with 30 sec."]
[WhiteFideId "4512286"]
[BlackFideId "4510623"]
[WhiteElo "1441"]
[BlackElo "1472"]

1. e4 {[%clk 01:30:43]} {[%emt 00:00:16]} c5 {[%clk 01:30:49]} {[%emt
00:00:12]} 2. Nf3 {[%clk 01:30:50]} {[%emt 00:00:22]} Nc6 {[%clk 01:31:07]}
{[%emt 00:00:12]} 3. d4 {[%clk 01:31:08]} {[%emt 00:00:12]} cxd4 {[%clk
01:31:12]} {[%emt 00:00:25]} 4. Nxd4 {[%clk 01:31:30]} {[%emt 00:00:08]} Nf6
{[%clk 01:31:34]} {[%emt 00:00:08]} 5. Nc3 {[%clk 01:31:51]} {[%emt 00:00:09]}
e5 {[%clk 01:31:58]} {[%emt 00:00:06]} 6. Ndb5 {[%clk 01:32:02]} {[%emt
00:00:19]} d6 {[%clk 01:32:13]} {[%emt 00:00:15]} 7. Bg5 {[%clk 01:32:18]}
{[%emt 00:00:13]} a6 {[%clk 01:32:28]} {[%emt 00:00:16]} 8. Na3 {[%clk
01:32:40]} {[%emt 00:00:07]} b5 {[%clk 01:32:46]} {[%emt 00:00:13]} 9. Bxf6
{[%clk 01:32:51]} {[%emt 00:00:20]} gxf6 {[%clk 01:33:07]} {[%emt 00:00:08]} 10.
Nd5 {[%clk 01:33:08]} {[%emt 00:00:12]} Bg7 {[%clk 01:32:44]} {[%emt 00:00:54]}
11. c3 {[%clk 01:32:26]} {[%emt 00:01:11]} Ne7 {[%clk 01:29:36]} {[%emt
00:03:40]} 12. Nc2 {[%clk 01:26:41]} {[%emt 00:06:15]} O-O {[%clk 01:24:47]}
{[%emt 00:05:18]} 13. Nce3 {[%clk 01:24:50]} {[%emt 00:02:21]} Be6 {[%clk
01:18:31]} {[%emt 00:06:46]} 14. Bd3 {[%clk 01:22:03]} {[%emt 00:03:17]} Rb8
{[%clk 00:50:40]} {[%emt 00:28:21]} 15. O-O {[%clk 01:15:39]} {[%emt 00:06:52]}
Qd7 {[%clk 00:46:33]} {[%emt 00:04:38]} 16. Qc2 {[%clk 01:12:11]} {[%emt
00:03:58]} h6 {[%clk 00:41:30]} {[%emt 00:05:34]} 17. Rfd1 {[%clk 01:06:01]}
{[%emt 00:06:37]} Rfd8 {[%clk 00:37:00]} {[%emt 00:05:02]} 18. Rd2 {[%clk
01:01:42]} {[%emt 00:04:49]} a5 {[%clk 00:23:39]} {[%emt 00:13:52]} 19. a4
{[%clk 00:55:20]} {[%emt 00:06:52]} bxa4 {[%clk 00:18:33]} {[%emt 00:05:35]} 20.
Qxa4 {[%clk 00:53:46]} {[%emt 00:02:03]} Bxd5 {[%clk 00:14:25]} {[%emt
00:04:38]} 21. Qxd7 {[%clk 00:50:20]} {[%emt 00:03:57]} Rxd7 {[%clk 00:14:43]}
{[%emt 00:00:12]} 22. Nxd5 {[%clk 00:50:09]} {[%emt 00:00:40]} Nc6 {[%clk
00:13:17]} {[%emt 00:01:56]} 23. Ne3 {[%clk 00:45:03]} {[%emt 00:05:35]} Bf8
{[%clk 00:10:37]} {[%emt 00:03:12]} 24. Bc4 {[%clk 00:39:24]} {[%emt 00:06:09]}
Ra7 {[%clk 00:07:52]} {[%emt 00:03:15]} 25. Ra4 {[%clk 00:31:10]} {[%emt
00:08:44]} Rd7 {[%clk 00:02:14]} {[%emt 00:06:08]} 26. Bd5 {[%clk 00:30:10]}
{[%emt 00:01:29]} Ne7 {[%clk 00:02:07]} {[%emt 00:00:38]} 27. Rxa5 {[%clk
00:29:50]} {[%emt 00:00:50]} Nxd5 {[%clk 00:02:05]} {[%emt 00:00:32]} 28. Nxd5
{[%clk 00:29:51]} {[%emt 00:00:29]} Kg7 {[%clk 00:02:16]} {[%emt 00:00:19]} 29.
b4 {[%clk 00:28:59]} {[%emt 00:01:23]} Rbb7 {[%clk 00:01:16]} {[%emt 00:01:30]}
30. Rda2 {[%clk 00:27:03]} {[%emt 00:02:26]} Rd8 {[%clk 00:00:47]} {[%emt
00:01:00]} 31. Ra7 {[%clk 00:25:10]} {[%emt 00:02:21]} Rxa7 {[%clk 00:00:48]}
{[%emt 00:00:31]} 32. Rxa7 {[%clk 00:25:33]} {[%emt 00:00:07]} Rb8 {[%clk
00:01:01]} {[%emt 00:00:17]} 33. Kf1 {[%clk 00:25:32]} {[%emt 00:00:31]} Kg6
{[%clk 00:00:49]} {[%emt 00:00:43]} 34. g4 {[%clk 00:23:04]} {[%emt 00:02:58]}
Rc8 {[%clk 00:01:02]} {[%emt 00:00:17]} 35. h4 {[%clk 00:23:01]} {[%emt
00:00:32]} Rc4 {[%clk 00:01:06]} {[%emt 00:00:27]} 36. f3 {[%clk 00:23:15]}
{[%emt 00:00:15]} Rc8 {[%clk 00:01:11]} {[%emt 00:00:25]} 37. h5+ {[%clk
00:22:34]} {[%emt 00:01:12]} Kg7 {[%clk 00:01:34]} {[%emt 00:00:06]} 38. Ke2
{[%clk 00:22:57]} {[%emt 00:00:07]} 1-0

[Event "Estonian Women's Chess Championship 2021"]
[Site "Tallinn, Paul Keres Chess House, Estonia"]
[Date "2021.12.13"]
[Round "3.4"]
[White "Narva, Triin"]
[Black "Ivanova, Lidia"]
[Result "1-0"]
[TimeControl "90 minutes for first 40 moves and 15 min. for the rest of the game with 30 sec."]
[WhiteTitle "WFM"]
[WhiteFideId "4502680"]
[BlackFideId "4506480"]
[WhiteElo "2112"]
[BlackElo "1443"]

1. e4 {[%clk 01:30:58]} {[%emt 00:00:01]} d5 {[%clk 01:30:55]} {[%emt
00:00:06]} 2. exd5 {[%clk 01:31:22]} {[%emt 00:00:05]} Qxd5 {[%clk 01:31:11]}
{[%emt 00:00:04]} 3. Nc3 {[%clk 01:31:50]} {[%emt 00:00:12]} Qa5 {[%clk
01:31:35]} {[%emt 00:00:06]} 4. d4 {[%clk 01:31:50]} {[%emt 00:00:29]} Nf6
{[%clk 01:31:56]} {[%emt 00:00:08]} 5. Nf3 {[%clk 01:31:18]} {[%emt 00:01:02]}
Bg4 {[%clk 01:32:10]} {[%emt 00:00:17]} 6. h3 {[%clk 01:31:26]} {[%emt
00:00:23]} Bh5 {[%clk 01:32:32]} {[%emt 00:00:07]} 7. Bd2 {[%clk 01:18:01]}
{[%emt 00:13:56]} Qb6 {[%clk 01:27:21]} {[%emt 00:05:41]} 8. Be2 {[%clk
01:15:27]} {[%emt 00:03:04]} Nbd7 {[%clk 01:19:34]} {[%emt 00:15:55]} 9. Ne5
{[%clk 00:35:09]} {[%emt 00:46:15]} Bxe2 {[%clk 01:11:34]} 10. Nxd7 {[%clk
00:29:08]} {[%emt 00:01:56]} Nxd7 {[%clk 01:08:02]} {[%emt 00:04:02]} 11. Qxe2
{[%clk 00:26:48]} {[%emt 00:02:50]} O-O-O {[%clk 01:04:24]} {[%emt 00:04:07]}
12. Qc4 {[%clk 00:16:16]} {[%emt 00:11:02]} e6 {[%clk 00:50:11]} {[%emt
00:42:43]} 13. Bg5 {[%clk 00:04:47]} Nf6 {[%clk 00:45:54]} 14. Bxf6 {[%clk
00:04:01]} gxf6 {[%clk 00:46:16]} 15. O-O-O {[%clk 00:04:25]} Qb4 {[%clk
00:39:31]} 16. Qxb4 {[%clk 00:00:52]} {[%emt 00:01:36]} Bxb4 {[%clk 00:39:53]}
{[%emt 00:00:08]} 17. Ne4 {[%clk 00:01:11]} {[%emt 00:00:11]} Be7 {[%clk
00:39:28]} {[%emt 00:00:55]} 18. c4 {[%clk 00:01:03]} {[%emt 00:00:39]} f5
{[%clk 00:39:26]} {[%emt 00:00:31]} 19. Nc3 {[%clk 00:01:27]} {[%emt 00:00:06]}
Bf6 {[%clk 00:37:51]} {[%emt 00:02:05]} 20. Ne2 {[%clk 00:01:52]} {[%emt
00:00:04]} Rhg8 {[%clk 00:36:54]} {[%emt 00:01:27]} 21. g3 {[%clk 00:01:59]}
{[%emt 00:00:24]} Rd7 {[%clk 00:35:38]} {[%emt 00:01:45]} 22. Rd2 {[%clk
00:01:45]} {[%emt 00:00:44]} f4 {[%clk 00:20:56]} {[%emt 00:15:12]} 23. Nxf4
{[%clk 00:01:57]} {[%emt 00:00:18]} Rxd4 {[%clk 00:20:35]} {[%emt 00:00:51]} 24.
Rxd4 {[%clk 00:01:49]} {[%emt 00:00:38]} Bxd4 {[%clk 00:20:59]} {[%emt
00:00:07]} 25. Rf1 {[%clk 00:02:09]} {[%emt 00:00:09]} a6 {[%clk 00:14:53]}
{[%emt 00:06:35]} 26. b3 {[%clk 00:00:34]} {[%emt 00:02:06]} Rd8 {[%clk
00:13:22]} {[%emt 00:02:02]} 27. Kc2 {[%clk 00:00:50]} {[%emt 00:00:15]} Bc5
{[%clk 00:07:06]} {[%emt 00:06:45]} 28. Nd3 {[%clk 00:00:49]} {[%emt 00:00:31]}
Bd4 {[%clk 00:06:43]} {[%emt 00:00:53]} 29. Re1 {[%clk 00:00:34]} {[%emt
00:00:45]} Bg7 {[%clk 00:02:49]} {[%emt 00:04:24]} 30. Re4 {[%clk 00:00:36]}
{[%emt 00:00:28]} Rd4 {[%clk 00:02:58]} {[%emt 00:00:21]} 31. Re2 {[%clk
00:00:40]} {[%emt 00:00:26]} e5 {[%clk 00:02:08]} {[%emt 00:01:20]} 32. Nxe5
{[%clk 00:00:33]} {[%emt 00:00:37]} f5 {[%clk 00:01:28]} {[%emt 00:01:10]} 33.
Nf3 {[%clk 00:00:47]} {[%emt 00:00:16]} Re4 {[%clk 00:00:54]} {[%emt 00:01:04]}
34. Rxe4 {[%clk 00:00:58]} {[%emt 00:00:20]} fxe4 {[%clk 00:01:23]} {[%emt
00:00:01]} 35. Ng5 {[%clk 00:01:22]} {[%emt 00:00:05]} e3 {[%clk 00:01:06]}
{[%emt 00:00:48]} 36. fxe3 {[%clk 00:01:46]} {[%emt 00:00:06]} Be5 {[%clk
00:01:27]} {[%emt 00:00:08]} 37. g4 {[%clk 00:02:03]} {[%emt 00:00:13]} h6
{[%clk 00:01:27]} {[%emt 00:00:30]} 38. Nf3 {[%clk 00:02:23]} {[%emt 00:00:10]}
Bf6 {[%clk 00:01:10]} {[%emt 00:00:48]} 39. Kd3 {[%clk 00:02:48]} {[%emt
00:00:05]} Kd7 {[%clk 00:01:27]} {[%emt 00:00:13]} 40. Ke4 {[%clk 00:18:05]}
{[%emt 00:00:13]} Ke6 {[%clk 00:15:57]} {[%emt 00:01:01]} 41. Nd4+ {[%clk
00:18:25]} {[%emt 00:00:09]} Kf7 {[%clk 00:15:24]} {[%emt 00:01:01]} 42. Kf5
{[%clk 00:18:43]} {[%emt 00:00:13]} c6 {[%clk 00:09:56]} {[%emt 00:05:58]} 43.
Ne6 {[%clk 00:18:59]} {[%emt 00:00:13]} b5 {[%clk 00:08:51]} {[%emt 00:01:36]}
44. cxb5 {[%clk 00:15:49]} {[%emt 00:03:41]} cxb5 {[%clk 00:07:37]} {[%emt
00:01:44]} 45. e4 {[%clk 00:15:57]} {[%emt 00:00:21]} a5 {[%clk 00:06:33]}
{[%emt 00:01:35]} 46. e5 {[%clk 00:16:22]} {[%emt 00:00:05]} Be7 {[%clk
00:06:05]} {[%emt 00:00:58]} 47. Nd4 {[%clk 00:16:45]} {[%emt 00:00:06]} a4
{[%clk 00:05:08]} {[%emt 00:01:27]} 48. Nxb5 {[%clk 00:17:08]} {[%emt
00:00:07]} axb3 {[%clk 00:05:31]} {[%emt 00:00:07]} 49. axb3 {[%clk 00:17:34]}
{[%emt 00:00:03]} Bg5 {[%clk 00:05:26]} {[%emt 00:00:35]} 50. Nd4 {[%clk
00:17:15]} {[%emt 00:00:49]} Be3 {[%clk 00:03:59]} {[%emt 00:01:57]} 51. Nc6
{[%clk 00:16:39]} {[%emt 00:01:07]} Bg5 {[%clk 00:03:47]} {[%emt 00:00:41]} 52.
e6+ {[%clk 00:15:51]} {[%emt 00:01:18]} Ke8 {[%clk 00:03:12]} {[%emt 00:01:06]}
53. b4 {[%clk 00:16:12]} {[%emt 00:00:09]} Bd2 {[%clk 00:02:15]} {[%emt
00:01:26]} 54. Kg6 {[%clk 00:16:30]} {[%emt 00:00:13]} Bg5 {[%clk 00:02:24]}
{[%emt 00:00:21]} 55. b5 {[%clk 00:16:51]} {[%emt 00:00:10]} Be3 {[%clk
00:02:44]} {[%emt 00:00:09]} 56. h4 {[%clk 00:16:29]} {[%emt 00:00:53]} Kf8
{[%clk 00:03:02]} {[%emt 00:00:12]} 57. e7+ {[%clk 00:14:32]} {[%emt 00:02:27]}
Ke8 {[%clk 00:03:13]} {[%emt 00:00:18]} 58. h5 {[%clk 00:14:52]} {[%emt
00:00:10]} 1-0

[Event "Estonian Women's Chess Championship 2021"]
[Site "Tallinn, Paul Keres Chess House, Estonia"]
[Date "2021.12.14"]
[Round "4.1"]
[White "Barkasheva, Sofia"]
[Black "Ivanova, Lidia"]
[Result "1-0"]
[TimeControl "90 minutes for first 40 moves and 15 min. for the rest of the game with 30 sec."]
[WhiteFideId "4510615"]
[BlackFideId "4506480"]
[WhiteElo "1505"]
[BlackElo "1443"]

1. e4 {[%clk 01:30:58]} {[%emt 00:00:02]} c6 {[%clk 01:30:54]} {[%emt
00:00:06]} 2. d4 {[%clk 01:31:10]} {[%emt 00:00:18]} d5 {[%clk 01:31:18]}
{[%emt 00:00:06]} 3. Nd2 {[%clk 01:31:28]} {[%emt 00:00:12]} dxe4 {[%clk
01:31:33]} {[%emt 00:00:15]} 4. Nxe4 {[%clk 01:31:53]} {[%emt 00:00:06]} Bf5
{[%clk 01:31:54]} {[%emt 00:00:08]} 5. Ng3 {[%clk 01:32:17]} {[%emt 00:00:06]}
Bg6 {[%clk 01:32:16]} {[%emt 00:00:09]} 6. h4 {[%clk 01:32:42]} {[%emt
00:00:04]} h6 {[%clk 01:32:30]} {[%emt 00:00:16]} 7. Nf3 {[%clk 01:32:54]}
{[%emt 00:00:18]} Nd7 {[%clk 01:30:41]} {[%emt 00:02:19]} 8. h5 {[%clk
01:31:31]} {[%emt 00:01:53]} Bh7 {[%clk 01:31:02]} {[%emt 00:00:09]} 9. Bd3
{[%clk 01:30:51]} {[%emt 00:01:10]} Bxd3 {[%clk 01:31:21]} {[%emt 00:00:11]} 10.
Qxd3 {[%clk 01:31:15]} {[%emt 00:00:07]} Ngf6 {[%clk 01:31:34]} {[%emt
00:00:17]} 11. c4 {[%clk 01:29:54]} {[%emt 00:01:50]} c5 {[%clk 01:26:06]}
{[%emt 00:05:58]} 12. d5 {[%clk 01:23:23]} {[%emt 00:07:01]} Qc7 {[%clk
01:26:08]} {[%emt 00:00:28]} 13. Be3 {[%clk 01:21:41]} {[%emt 00:02:13]} Ng4
{[%clk 01:24:30]} {[%emt 00:02:08]} 14. O-O-O {[%clk 01:19:32]} {[%emt
00:02:39]} O-O-O {[%clk 01:16:02]} {[%emt 00:08:58]} 15. Rh4 {[%clk 01:12:43]}
{[%emt 00:07:18]} Ndf6 {[%clk 01:06:02]} {[%emt 00:10:31]} 16. Ne4 {[%clk
00:58:52]} {[%emt 00:14:21]} Nxe3 {[%clk 01:02:41]} {[%emt 00:03:52]} 17. Qxe3
{[%clk 00:58:53]} {[%emt 00:00:28]} Nxe4 {[%clk 01:01:18]} {[%emt 00:01:53]} 18.
Rxe4 {[%clk 00:58:18]} {[%emt 00:01:05]} f6 {[%clk 00:44:42]} {[%emt 00:17:06]}
19. Re6 {[%clk 00:56:11]} {[%emt 00:02:36]} Rd6 {[%clk 00:44:29]} {[%emt
00:00:44]} 20. Nh4 {[%clk 00:55:30]} {[%emt 00:01:11]} Rd7 {[%clk 00:30:13]}
{[%emt 00:14:47]} 21. Ng6 {[%clk 00:55:13]} {[%emt 00:00:46]} Rg8 {[%clk
00:30:04]} {[%emt 00:00:39]} 22. d6 {[%clk 00:55:21]} {[%emt 00:00:22]} Qd8
{[%clk 00:19:28]} {[%emt 00:11:06]} 23. Nxf8 {[%clk 00:53:45]} {[%emt
00:02:06]} Rxf8 {[%clk 00:17:22]} {[%emt 00:02:36]} 24. Rxe7 {[%clk 00:53:20]}
{[%emt 00:00:55]} b6 {[%clk 00:14:07]} {[%emt 00:03:44]} 25. Qe4 {[%clk
00:52:23]} {[%emt 00:01:25]} Kb8 {[%clk 00:14:07]} {[%emt 00:00:34]} 26. Qe6
{[%clk 00:51:51]} {[%emt 00:01:00]} Kc8 {[%clk 00:12:20]} {[%emt 00:02:18]} 27.
Rxg7 {[%clk 00:51:40]} {[%emt 00:00:40]} Re8 {[%clk 00:11:32]} {[%emt
00:01:19]} 28. Re7 {[%clk 00:51:41]} {[%emt 00:00:29]} Rexe7 {[%clk 00:10:37]}
{[%emt 00:01:25]} 29. dxe7 {[%clk 00:51:40]} {[%emt 00:00:31]} Qxe7 {[%clk
00:09:01]} {[%emt 00:02:06]} 30. Qc6+ {[%clk 00:51:48]} {[%emt 00:00:21]} Kd8
{[%clk 00:09:18]} {[%emt 00:00:13]} 31. Qa8+ {[%clk 00:52:07]} {[%emt
00:00:11]} Kc7 {[%clk 00:09:43]} {[%emt 00:00:05]} 32. Qxa7+ {[%clk 00:52:28]}
{[%emt 00:00:09]} Kc6 {[%clk 00:09:57]} {[%emt 00:00:16]} 33. Qxd7+ {[%clk
00:50:53]} {[%emt 00:02:05]} Qxd7 {[%clk 00:10:16]} {[%emt 00:00:12]} 34. Rxd7
{[%clk 00:51:19]} {[%emt 00:00:04]} Kxd7 {[%clk 00:10:39]} {[%emt 00:00:07]} 35.
Kd2 {[%clk 00:51:13]} {[%emt 00:00:35]} Kd6 {[%clk 00:10:51]} {[%emt 00:00:18]}
36. Ke3 {[%clk 00:51:15]} {[%emt 00:00:27]} Ke5 {[%clk 00:11:08]} {[%emt
00:00:14]} 37. f4+ {[%clk 00:51:16]} {[%emt 00:00:29]} Kf5 {[%clk 00:08:54]}
{[%emt 00:02:44]} 38. Kf3 {[%clk 00:51:16]} {[%emt 00:00:30]} Ke6 {[%clk
00:08:55]} {[%emt 00:00:28]} 39. g4 {[%clk 00:51:21]} {[%emt 00:00:25]} Ke7
{[%clk 00:06:42]} {[%emt 00:02:44]} 40. Ke4 {[%clk 01:06:34]} {[%emt 00:00:17]}
Ke6 {[%clk 00:21:54]} {[%emt 00:00:18]} 41. a3 {[%clk 01:06:53]} {[%emt
00:00:11]} f5+ {[%clk 00:20:04]} {[%emt 00:02:20]} 42. gxf5+ {[%clk 01:07:18]}
{[%emt 00:00:06]} Kf6 {[%clk 00:20:21]} {[%emt 00:00:13]} 43. b4 {[%clk
01:07:42]} {[%emt 00:00:06]} 1-0

[Event "Estonian Women's Chess Championship 2021"]
[Site "Tallinn, Paul Keres Chess House, Estonia"]
[Date "2021.12.14"]
[Round "4.2"]
[White "Shadrina, Eva"]
[Black "Narva, Triin"]
[Result "0-1"]
[TimeControl "90 minutes for first 40 moves and 15 min. for the rest of the game with 30 sec."]
[BlackTitle "WFM"]
[WhiteFideId "4510623"]
[BlackFideId "4502680"]
[WhiteElo "1472"]
[BlackElo "2112"]

1. e4 {[%clk 01:30:58]} g6 {[%clk 01:30:28]} {[%emt 00:00:33]} 2. d4 {[%clk
01:30:49]} {[%emt 00:00:39]} Bg7 {[%clk 01:30:45]} {[%emt 00:00:13]} 3. Nc3
{[%clk 01:30:13]} {[%emt 00:01:07]} d6 {[%clk 01:30:57]} {[%emt 00:00:17]} 4.
Be3 {[%clk 01:29:26]} {[%emt 00:01:17]} Nd7 {[%clk 01:30:36]} {[%emt 00:00:51]}
5. Qd2 {[%clk 01:28:30]} {[%emt 00:01:26]} a6 {[%clk 01:21:06]} {[%emt
00:10:01]} 6. f3 {[%clk 01:25:41]} {[%emt 00:03:18]} b5 {[%clk 01:20:20]}
{[%emt 00:01:15]} 7. a3 {[%clk 01:17:20]} {[%emt 00:08:51]} e6 {[%clk
01:10:05]} {[%emt 00:10:45]} 8. O-O-O {[%clk 00:56:58]} {[%emt 00:20:52]} Bb7
{[%clk 01:00:29]} {[%emt 00:10:06]} 9. Nge2 {[%clk 00:54:58]} {[%emt 00:02:30]}
Nb6 {[%clk 00:37:55]} {[%emt 00:23:05]} 10. Ng3 {[%clk 00:52:30]} {[%emt
00:02:57]} d5 {[%clk 00:30:01]} {[%emt 00:08:24]} 11. exd5 {[%clk 00:41:55]}
{[%emt 00:11:05]} Bxd5 {[%clk 00:28:41]} {[%emt 00:01:50]} 12. Nxd5 {[%clk
00:41:11]} {[%emt 00:01:14]} Qxd5 {[%clk 00:28:36]} {[%emt 00:00:35]} 13. Kb1
{[%clk 00:40:46]} {[%emt 00:00:56]} Ne7 {[%clk 00:19:01]} {[%emt 00:10:05]} 14.
Bf4 {[%clk 00:34:53]} {[%emt 00:06:22]} O-O-O {[%clk 00:09:31]} {[%emt
00:09:59]} 15. Be3 {[%clk 00:22:31]} {[%emt 00:12:53]} Nc6 {[%clk 00:09:15]}
{[%emt 00:00:46]} 16. Bd3 {[%clk 00:19:48]} {[%emt 00:03:13]} f5 {[%clk
00:02:27]} {[%emt 00:07:18]} 17. Ne2 {[%clk 00:17:17]} {[%emt 00:03:01]} Nxd4
{[%clk 00:01:27]} {[%emt 00:01:30]} 18. Nxd4 {[%clk 00:16:12]} {[%emt
00:01:35]} Bxd4 {[%clk 00:01:42]} {[%emt 00:00:15]} 19. Bxd4 {[%clk 00:16:33]}
{[%emt 00:00:07]} Qxd4 {[%clk 00:01:58]} {[%emt 00:00:14]} 20. Qa5 {[%clk
00:16:33]} {[%emt 00:00:30]} Qa4 {[%clk 00:02:15]} {[%emt 00:00:13]} 21. Qxa4
{[%clk 00:16:34]} {[%emt 00:00:29]} Nxa4 {[%clk 00:02:39]} {[%emt 00:00:06]} 22.
Rhe1 {[%clk 00:16:54]} {[%emt 00:00:10]} Rhe8 {[%clk 00:02:51]} {[%emt
00:00:19]} 23. Re5 {[%clk 00:16:35]} {[%emt 00:00:48]} Rd5 {[%clk 00:01:02]}
{[%emt 00:02:19]} 24. Rde1 {[%clk 00:16:46]} {[%emt 00:00:19]} Rxe5 {[%clk
00:01:13]} {[%emt 00:00:18]} 25. Rxe5 {[%clk 00:17:09]} {[%emt 00:00:07]} Kd7
{[%clk 00:01:03]} {[%emt 00:00:40]} 26. c4 {[%clk 00:16:09]} {[%emt 00:01:30]}
Kd6 {[%clk 00:01:00]} {[%emt 00:00:33]} 27. Re2 {[%clk 00:16:20]} {[%emt
00:00:18]} c6 {[%clk 00:01:05]} {[%emt 00:00:26]} 28. cxb5 {[%clk 00:16:08]}
{[%emt 00:00:42]} cxb5 {[%clk 00:00:51]} {[%emt 00:00:44]} 29. Rd2 {[%clk
00:15:57]} {[%emt 00:00:41]} Kc6 {[%clk 00:01:15]} {[%emt 00:00:06]} 30. Bc2
{[%clk 00:15:45]} {[%emt 00:00:42]} Nb6 {[%clk 00:01:36]} {[%emt 00:00:10]} 31.
Bb3 {[%clk 00:15:41]} {[%emt 00:00:34]} Re7 {[%clk 00:00:44]} {[%emt 00:01:22]}
32. Kc2 {[%clk 00:15:09]} {[%emt 00:01:02]} e5 {[%clk 00:00:40]} {[%emt
00:00:35]} 33. Re2 {[%clk 00:14:56]} {[%emt 00:00:42]} a5 {[%clk 00:00:35]}
{[%emt 00:00:36]} 34. Ba2 {[%clk 00:13:58]} {[%emt 00:01:28]} Kc5 {[%clk
00:00:43]} {[%emt 00:00:22]} 35. Re3 {[%clk 00:12:44]} {[%emt 00:01:45]} e4
{[%clk 00:00:40]} {[%emt 00:00:34]} 36. Kd2 {[%clk 00:11:35]} {[%emt 00:01:38]}
Kd4 {[%clk 00:00:39]} {[%emt 00:00:31]} 37. f4 {[%clk 00:11:01]} {[%emt
00:01:04]} Rc7 {[%clk 00:00:44]} {[%emt 00:00:25]} 38. Bb3 {[%clk 00:10:33]}
{[%emt 00:00:58]} a4 {[%clk 00:00:50]} {[%emt 00:00:25]} 39. Bg8 {[%clk
00:10:20]} {[%emt 00:00:41]} Nc4+ {[%clk 00:00:57]} {[%emt 00:00:24]} 40. Bxc4
{[%clk 00:25:39]} {[%emt 00:00:11]} bxc4 {[%clk 00:16:14]} {[%emt 00:00:14]} 41.
Rc3 {[%clk 00:25:12]} {[%emt 00:00:56]} Rb7 {[%clk 00:16:33]} {[%emt 00:00:11]}
42. Rc2 {[%clk 00:24:57]} {[%emt 00:00:45]} Rb3 {[%clk 00:16:38]} {[%emt
00:00:25]} 43. g3 {[%clk 00:24:14]} {[%emt 00:01:13]} h5 {[%clk 00:16:16]}
{[%emt 00:00:52]} 0-1